bitfinex/quotes_ETHUSD_20250420
["timestamp","ask_amount","ask_price","bid_price","bid_amount"]
[1745168838505,5.22420635,1576.0,1575.7,5.238]
[1745168839004,0.62931516,1576.2,1575.7,5.238]
[1745168839173,2.34622191,1576.1,1575.7,11.238]
[1745168839376,5.22420635,1576.2,1575.7,11.238]
[1745168839706,2.34622191,1576.1,1575.7,11.238]
[1745168840007,5.22420635,1576.2,1575.7,11.238]
[1745168840209,2.34622191,1576.1,1575.7,11.238]
[1745168840398,6.9296,1576.5,1575.7,11.238]
[1745168840399,11.36420635,1576.5,1575.8,0.77080236]
[1745168840711,2.34622191,1576.4,1575.8,6.77080236]
[1745168842485,2.34622191,1576.4,1575.8,6.0]
[1745168844835,2.34622191,1576.4,1575.9,3.0]
[1745168845118,5.22420635,1576.5,1575.9,3.0]
[1745168845521,5.21281149,1576.5,1575.9,3.0]
[1745168846221,5.00760022,1576.5,1575.9,3.0]
[1745168848725,5.00760022,1576.5,1575.9,9.0]
[1745168849417,2.40972059,1576.4,1575.9,9.0]
[1745168850008,2.40972059,1576.3,1575.9,9.0]
[1745168850210,2.40972059,1576.2,1576.1,3.0]
[1745168850415,2.40972059,1576.3,1576.1,3.0]
[1745168854519,2.40972059,1576.3,1576.1,3.47910427]
[1745168855119,2.40972059,1576.3,1576.2,54.313]
[1745168858808,2.95972059,1576.3,1576.2,54.313]
[1745168860006,4.14648323,1576.3,1576.2,54.313]
[1745168860226,8.90617756,1576.3,1576.2,54.313]
[1745168860432,8.10357756,1576.3,1576.2,59.55]
[1745168860945,0.8026,1576.2,1575.7,0.46305499]
[1745168861133,0.8026,1576.2,1575.6,3.0]
[1745168861134,2.40972059,1575.8,1575.6,3.0]
[1745168861335,2.34997374,1575.7,1575.6,3.0]
[1745168861636,2.34997374,1575.7,1575.6,0.4779172]
[1745168861842,2.34997374,1575.7,1575.6,3.0]
[1745168862433,2.34997374,1575.7,1575.6,3.77080236]
[1745168862616,2.40972059,1575.9,1575.6,3.77080236]
[1745168862822,2.34675799,1575.8,1575.6,3.77080236]
[1745168863558,6.02703402,1576.0,1575.6,3.77080236]
[1745168863738,2.34675799,1575.9,1575.6,3.77080236]
[1745168865410,2.34675799,1575.9,1575.7,59.558]
[1745168865610,6.02703402,1576.0,1575.7,59.558]
[1745168872759,6.62973742,1576.0,1575.7,59.558]
[1745168872961,2.34675799,1575.9,1575.7,59.558]
[1745168873165,6.62973742,1576.0,1575.7,59.558]
[1745168873322,2.34675799,1575.9,1575.7,59.558]
[1745168873860,2.34675799,1575.9,1575.8,5.238]
[1745168874066,2.42607819,1575.9,1575.8,5.238]
[1745168875467,2.34675799,1575.9,1575.8,5.238]
[1745168875769,2.4260821,1575.9,1575.8,5.238]
[1745168875930,2.34675799,1575.9,1575.8,5.238]
[1745168876466,2.4260821,1575.9,1575.8,5.238]
[1745168876763,2.34675799,1575.9,1575.8,5.238]
[1745168877064,2.42608213,1575.9,1575.8,5.238]
[1745168877365,2.34675799,1575.9,1575.8,5.238]
[1745168878766,2.34675799,1575.9,1575.8,59.564]
[1745168880574,2.19572936,1575.9,1575.8,59.564]
[1745168883352,5.22443402,1576.2,1575.8,59.564]
[1745168883562,2.19572936,1576.1,1575.8,59.564]
[1745168883881,5.22443402,1576.2,1575.8,59.564]
[1745168884046,2.19572936,1576.0,1575.8,59.564]
[1745168884248,5.22443402,1576.2,1575.8,59.564]
[1745168884449,2.19572936,1575.9,1575.8,62.564]
[1745168884658,5.22443402,1576.2,1575.8,62.564]
[1745168885056,2.08564956,1576.1,1575.8,62.564]
[1745168885241,5.22443402,1576.2,1575.8,62.564]
[1745168885440,2.18655604,1576.0,1575.9,3.0]
[1745168885647,5.30374505,1576.4,1575.9,3.77080236]
[1745168885847,5.22443402,1576.4,1575.9,3.77080236]
[1745168886113,5.30373608,1576.4,1575.9,3.77080236]
[1745168886267,2.18655604,1576.3,1575.9,3.77080236]
[1745168886849,2.18655604,1576.3,1575.9,3.0]
[1745168887595,2.26585819,1576.3,1575.9,3.0]
[1745168888584,5.22443402,1576.2,1575.9,3.0]
[1745168888885,7.41367023,1576.2,1575.9,3.0]
[1745168889062,5.22443402,1576.2,1575.9,3.0]
[1745168891290,2.41043613,1576.2,1575.9,3.0]
[1745168897094,2.41043613,1576.1,1575.9,3.0]
[1745168899696,2.41043613,1576.1,1576.0,5.237]
[1745168903991,3.22903613,1576.1,1576.0,5.237]
[1745168904198,4.47730605,1576.1,1576.0,5.237]
[1745168904407,4.25624013,1576.1,1576.0,5.237]
[1745168912827,0.55,1576.0,1575.8,54.326]
[1745168913026,2.96043613,1576.0,1575.9,5.237]
[1745168917935,3.83905974,1576.0,1575.9,5.237]
[1745168918139,4.28486044,1576.0,1575.9,5.237]
[1745168918444,4.28486044,1576.0,1575.8,54.326]
[1745168918745,1.87442431,1576.0,1575.9,5.237]
[1745168918901,4.28486044,1576.0,1575.9,5.237]
[1745168924374,6.4663234,1576.0,1575.9,5.237]
[1745168930973,5.2212227,1576.0,1575.9,5.237]
[1745168942390,6.0344227,1576.0,1575.9,5.237]
[1745168948321,5.2212227,1576.0,1575.9,5.237]
[1745168948708,2.18146296,1576.0,1575.9,5.237]
[1745168949115,2.41043613,1576.1,1575.9,5.237]
[1745168949424,2.18132888,1576.0,1575.9,5.237]
[1745168949600,4.59176501,1576.0,1575.9,5.237]
[1745168971242,4.59176501,1576.0,1575.9,59.562]
[1745168971427,2.41043613,1576.0,1575.9,59.562]
[1745168972447,2.96043613,1576.0,1575.9,59.562]
[1745168972652,3.73373613,1576.0,1575.9,59.562]
[1745168972939,5.91761184,1576.0,1575.9,59.562]
[1745168979453,5.14431184,1576.0,1575.9,59.562]
[1745168981848,5.14431184,1576.0,1575.9,54.325]
[1745168982048,5.14431184,1576.0,1575.9,59.561]
[1745168996077,4.59431184,1576.0,1575.9,59.561]
[1745168996260,2.18387571,1576.0,1575.9,59.561]
[1745169013100,3.27706864,1576.0,1575.9,54.325]
[1745169013398,4.10956864,1576.0,1575.9,59.561]
[1745169014086,12.66000477,1576.0,1575.9,59.564]
[1745169014397,0.55,1575.7,1575.3,0.46447524]
[1745169014595,2.41043613,1575.5,1575.0,6.77080236]
[1745169015175,2.41043613,1575.2,1575.0,6.77080236]
[1745169015358,2.41043613,1575.2,1575.1,59.667]
[1745169019500,3.79293613,1575.2,1575.1,59.668]
[1745169020088,5.9666217,1575.2,1575.1,59.668]
[1745169020279,6.56328387,1575.2,1575.1,59.668]
[1745169020802,5.73078387,1575.2,1575.1,59.668]
[1745169021008,6.56328387,1575.2,1575.1,59.668]
[1745169021349,5.9666217,1575.2,1575.1,59.668]
[1745169021605,3.79293613,1575.2,1575.1,59.668]
[1745169023171,5.96528017,1575.2,1575.1,59.668]
[1745169025330,4.58278017,1575.2,1575.1,59.668]
[1745169029126,2.17234404,1575.2,1575.1,59.668]
[1745169029309,2.41043613,1575.4,1575.1,59.668]
[1745169030012,2.41043613,1575.4,1575.1,60.13479255]
[1745169030912,2.41043613,1575.4,1575.1,59.668]
[1745169041245,2.3270766,1575.3,1575.1,59.668]
[1745169041631,2.41043613,1575.4,1575.1,59.668]
[1745169041958,2.3270766,1575.3,1575.1,59.668]
[1745169042256,2.41043613,1575.4,1575.1,59.668]
[1745169042556,2.3270766,1575.3,1575.1,59.668]
[1745169042858,2.41043613,1575.4,1575.1,59.668]
[1745169043158,2.3270766,1575.3,1575.1,59.668]
[1745169043345,2.41043613,1575.4,1575.1,59.668]
[1745169043546,2.3270766,1575.2,1575.1,59.668]
[1745169043722,2.41043613,1575.4,1575.1,59.668]
[1745169043922,2.3270766,1575.3,1575.1,59.668]
[1745169044123,2.41043613,1575.4,1575.1,59.668]
[1745169044351,2.3270766,1575.3,1575.1,59.668]
[1745169044535,2.41043613,1575.4,1575.1,59.668]
[1745169044719,2.3270766,1575.2,1575.1,59.668]
[1745169045219,2.41043613,1575.4,1575.1,59.668]
[1745169045420,2.3270766,1575.2,1575.1,59.668]
[1745169045722,2.41043613,1575.4,1575.1,59.668]
[1745169046025,2.3270766,1575.3,1575.1,59.668]
[1745169046216,2.41043613,1575.4,1575.1,59.668]
[1745169046421,2.3270766,1575.2,1575.1,59.668]
[1745169046619,2.41043613,1575.4,1575.1,59.668]
[1745169046854,2.3270766,1575.2,1575.1,59.668]
[1745169047049,2.41043613,1575.4,1575.1,59.668]
[1745169047450,2.3270766,1575.3,1575.1,59.668]
[1745169047864,2.41043613,1575.4,1575.1,59.668]
[1745169048162,2.3270766,1575.3,1575.1,59.668]
[1745169048363,2.41043613,1575.4,1575.1,59.668]
[1745169048562,2.3270766,1575.2,1575.1,59.668]
[1745169048763,2.41043613,1575.4,1575.1,59.668]
[1745169049063,2.41043613,1575.4,1575.2,5.237]
[1745169049269,2.3270766,1575.3,1575.2,5.237]
[1745169049566,2.41043613,1575.4,1575.2,5.237]
[1745169049974,2.32747902,1575.3,1575.2,5.237]
[1745169050173,2.41043613,1575.4,1575.2,5.237]
[1745169050333,2.32747902,1575.3,1575.2,5.237]
[1745169050668,2.41043613,1575.4,1575.2,5.237]
[1745169051069,2.32747902,1575.3,1575.2,5.237]
[1745169051417,2.41043613,1575.4,1575.2,5.237]
[1745169051863,2.32747902,1575.3,1575.2,5.237]
[1745169052248,2.41043613,1575.4,1575.2,5.237]
[1745169052751,2.32747902,1575.3,1575.2,5.237]
[1745169053171,2.41043613,1575.4,1575.2,5.237]
[1745169053361,2.32747902,1575.3,1575.2,5.237]
[1745169053561,2.41043613,1575.4,1575.2,5.237]
[1745169053869,2.32747902,1575.3,1575.2,5.237]
[1745169054073,2.32747902,1575.3,1575.2,59.584]
[1745169054578,2.41043613,1575.4,1575.2,59.584]
[1745169054976,2.32747902,1575.3,1575.2,59.584]
[1745169055197,2.41043613,1575.4,1575.2,59.584]
[1745169055494,2.32747902,1575.3,1575.2,59.584]
[1745169055989,2.41043613,1575.4,1575.2,59.584]
[1745169056910,2.32747902,1575.3,1575.2,59.584]
[1745169057195,2.41043613,1575.4,1575.2,59.584]
[1745169057793,2.32747902,1575.3,1575.2,59.584]
[1745169058292,2.41043613,1575.4,1575.2,59.584]
[1745169058596,2.32747902,1575.3,1575.2,59.584]
[1745169058996,2.41043613,1575.4,1575.2,59.584]
[1745169059403,2.32747902,1575.3,1575.2,59.584]
[1745169059997,2.41043613,1575.4,1575.2,59.584]
[1745169060602,2.32774727,1575.3,1575.2,59.584]
[1745169060990,2.41043613,1575.4,1575.2,59.584]
[1745169061359,2.32774727,1575.3,1575.2,59.584]
[1745169061797,2.41043613,1575.4,1575.2,59.584]
[1745169062199,2.32774727,1575.3,1575.2,59.584]
[1745169062702,2.41043613,1575.4,1575.2,59.584]
[1745169063008,2.32774727,1575.3,1575.2,59.584]
[1745169063474,2.41043613,1575.4,1575.2,59.584]
[1745169063810,2.32774727,1575.3,1575.2,59.584]
[1745169072025,4.20937561,1575.3,1575.2,54.347]
[1745169072207,4.20937561,1575.3,1575.1,0.1]
[1745169072208,1.3266,1575.2,1575.1,0.1]
[1745169072385,3.73703613,1575.2,1575.1,59.683]
[1745169072589,6.0647836,1575.2,1575.1,59.683]
[1745169072789,6.73469935,1575.2,1575.1,59.683]
[1745169078392,9.14513548,1575.2,1575.1,54.447]
[1745169078591,9.14513548,1575.2,1575.1,59.684]
[1745169081609,9.22450287,1575.2,1575.1,59.684]
[1745169082340,6.81406674,1575.2,1575.1,59.684]
[1745169086057,6.26406631,1575.2,1575.1,59.684]
[1745169086213,4.81755056,1575.2,1575.1,59.684]
[1745169086409,2.32774747,1575.2,1575.1,59.684]
[1745169086631,4.7381836,1575.2,1575.1,59.684]
[1745169108373,5.2881836,1575.2,1575.1,59.684]
[1745169109279,4.7381836,1575.2,1575.1,59.684]
[1745169132198,2.32774747,1575.2,1575.1,59.684]
[1745169132570,2.41043613,1575.3,1575.1,59.684]
[1745169132776,2.32224676,1575.2,1575.1,59.684]
[1745169133087,2.41043613,1575.3,1575.1,59.684]
[1745169133501,2.32224676,1575.2,1575.1,59.684]
[1745169133871,2.41043613,1575.3,1575.1,59.684]
[1745169134288,2.32224676,1575.2,1575.1,59.684]
[1745169134578,2.41043613,1575.3,1575.1,59.684]
[1745169134781,2.32224676,1575.2,1575.1,59.684]
[1745169134979,2.41043613,1575.3,1575.1,59.684]
[1745169135171,2.32224676,1575.2,1575.1,59.684]
[1745169135374,2.41043613,1575.4,1575.1,59.684]
[1745169135569,2.32224676,1575.3,1575.1,59.684]
[1745169139814,0.2496,1575.2,1575.1,59.684]
[1745169172319,0.2496,1575.2,1575.1,66.41732736]
[1745169172637,0.2496,1575.2,1575.1,67.12775615]
[1745169174650,0.2496,1575.2,1575.1,15.19119228]
[1745169174824,0.2496,1575.2,1575.1,12.78075615]
[1745169175023,0.01454153,1575.3,1575.1,15.19119228]
[1745169175225,0.01454153,1575.3,1575.1,9.95419228]
[1745169175453,0.01454153,1575.3,1575.2,59.576]
[1745169176065,0.01454153,1575.3,1575.2,62.576]
[1745169178551,0.01454153,1575.3,1575.2,68.576]
[1745169179641,0.01454153,1575.3,1575.2,9.0]
[1745169179841,2.33973971,1575.3,1575.2,9.0]
[1745169180152,0.01454153,1575.3,1575.2,9.0]
[1745169181728,2.33973971,1575.3,1575.2,9.0]
[1745169181962,0.01454153,1575.3,1575.2,9.0]
[1745169182138,2.33973971,1575.3,1575.2,9.0]
[1745169182339,0.01454153,1575.3,1575.2,9.0]
[1745169182569,2.33973971,1575.3,1575.2,9.0]
[1745169182728,0.01454153,1575.3,1575.2,9.0]
[1745169183057,2.34510379,1575.3,1575.2,9.0]
[1745169183240,2.34510379,1575.3,1575.2,6.0]
[1745169185363,2.34510379,1575.3,1575.2,65.569]
[1745169185767,0.01454153,1575.3,1575.2,65.569]
[1745169189068,0.01454153,1575.3,1575.2,66.30232736]
[1745169189372,0.01454153,1575.3,1575.2,11.96632736]
[1745169191044,0.01454153,1575.3,1575.2,6.73332736]
[1745169191282,2.34510379,1575.3,1575.2,6.73332736]
[1745169191467,0.01454153,1575.3,1575.2,6.73332736]
[1745169191639,2.34510379,1575.3,1575.2,6.73332736]
[1745169194885,2.34510379,1575.3,1575.2,6.0]
[1745169195493,2.34510379,1575.3,1575.2,65.566]
[1745169195885,0.01454153,1575.3,1575.2,65.566]
[1745169198891,0.01454153,1575.3,1575.2,68.566]
[1745169199205,0.01454153,1575.3,1575.2,14.232]
[1745169201291,0.01454153,1575.3,1575.2,9.0]
[1745169201672,2.34456754,1575.3,1575.2,9.0]
[1745169201871,0.01454153,1575.3,1575.2,9.0]
[1745169202194,2.34456754,1575.3,1575.2,9.0]
[1745169202357,0.7787,1575.7,1575.2,9.0]
[1745169202552,0.7787,1575.7,1575.3,9.0]
[1745169202854,2.33002601,1575.6,1575.3,9.0]
[1745169203075,0.7787,1575.7,1575.3,9.47264555]
[1745169203287,2.33002601,1575.5,1575.3,9.47264555]
[1745169203460,0.7787,1575.7,1575.3,9.47264555]
[1745169203793,2.33002601,1575.6,1575.3,9.47264555]
[1745169204116,0.7787,1575.7,1575.3,9.47264555]
[1745169204390,2.33002601,1575.5,1575.3,9.47264555]
[1745169204563,0.7787,1575.7,1575.3,9.47264555]
[1745169204769,2.33002601,1575.4,1575.3,9.47264555]
[1745169204977,0.7787,1575.7,1575.3,9.47264555]
[1745169205168,2.33002601,1575.4,1575.3,9.47264555]
[1745169205379,0.7787,1575.7,1575.3,69.03564555]
[1745169205568,2.33002601,1575.4,1575.3,69.03564555]
[1745169205768,0.7787,1575.7,1575.3,69.03564555]
[1745169207897,0.7787,1575.7,1575.4,6.0]
[1745169211415,3.18913613,1575.7,1575.4,6.0]
[1745169213128,2.41043613,1575.6,1575.4,6.0]
[1745169213686,2.41043613,1575.6,1575.5,6.0]
[1745169213908,3.18913613,1575.7,1575.6,3.0]
[1745169215493,2.72934974,1575.7,1575.6,5.231]
[1745169216095,3.48854974,1575.7,1575.6,5.231]
[1745169217633,5.81978233,1575.7,1575.6,59.56]
[1745169217954,3.48854974,1575.7,1575.6,59.56]
[1745169220065,5.81978233,1575.7,1575.6,59.56]
[1745169245130,5.50086872,1575.7,1575.6,59.56]
[1745169252216,4.74166872,1575.7,1575.6,59.56]
[1745169252545,2.33123259,1575.7,1575.6,63.29332736]
[1745169252746,2.41043613,1575.8,1575.6,62.56]
[1745169252925,2.41043613,1575.7,1575.6,62.56]
[1745169253613,2.41043613,1575.8,1575.6,62.56]
[1745169254352,2.32989193,1575.7,1575.6,62.56]
[1745169254717,2.41043613,1575.8,1575.6,68.56]
[1745169255013,2.41043613,1575.7,1575.6,68.56]
[1745169263027,3.23953613,1575.7,1575.6,65.559]
[1745169263223,5.97392587,1575.7,1575.6,65.559]
[1745169263463,5.69482587,1575.7,1575.6,54.329]
[1745169263655,6.52392587,1575.7,1575.6,59.559]
[1745169263852,8.8538178,1575.7,1575.6,59.559]
[1745169273980,6.44338167,1575.7,1575.6,59.559]
[1745169274149,8.8538178,1575.7,1575.6,59.559]
[1745169275771,0.8277,1575.5,1575.2,6.0]
[1745169275974,1.45704968,1575.4,1575.3,59.569]
[1745169276155,3.78452794,1575.4,1575.3,59.569]
[1745169276353,4.16298073,1575.4,1575.3,59.569]
[1745169277082,6.57341686,1575.4,1575.3,59.569]
[1745169277578,0.8277,1575.3,1575.1,0.1]
[1745169277781,6.27793422,1575.2,1575.1,0.1]
[1745169278272,8.60353481,1575.2,1575.1,0.1]
[1745169278447,9.46388829,1575.2,1575.1,0.1]
[1745169278642,8.63618829,1575.2,1574.6,6.0]
[1745169278883,2.41043613,1574.7,1574.4,6.0]
[1745169279185,2.41043613,1574.6,1574.5,3.0]
[1745169279684,4.73603672,1574.6,1574.4,6.0]
[1745169279856,4.73603672,1574.6,1574.5,3.0]
[1745169280042,4.73603672,1574.6,1574.5,3.47203793]
[1745169283883,2.32560059,1574.6,1574.5,3.47203793]
[1745169284079,2.32560059,1574.6,1574.5,9.47203793]
[1745169285380,2.32560059,1574.6,1574.5,69.05903793]
[1745169285584,2.41043613,1574.7,1574.5,69.05903793]
[1745169287852,2.41043613,1574.6,1574.5,60.355]
[1745169288092,2.41043613,1574.6,1574.5,65.587]
[1745169289912,2.41043613,1574.6,1574.5,59.587]
[1745169291009,4.73429217,1574.6,1574.5,59.587]
[1745169291200,5.28334139,1574.6,1574.5,59.587]
[1745169292289,6.06464139,1574.6,1574.5,59.587]
[1745169293283,8.88875039,1574.6,1574.5,59.587]
[1745169295514,9.43875039,1574.6,1574.5,59.587]
[1745169297994,1.3027,1574.5,1574.2,0.1803472]
[1745169298194,14.16177036,1574.4,1574.3,59.603]
[1745169298398,16.11253729,1574.4,1574.3,59.603]
[1745169301234,9.57529216,1574.4,1574.3,59.603]
[1745169301405,7.54511512,1574.4,1574.3,59.603]
[1745169303220,2.31056999,1574.4,1574.3,65.603]
[1745169303409,5.23454513,1574.5,1574.3,65.603]
[1745169304206,2.29736522,1574.4,1574.3,65.603]
[1745169306873,2.29736522,1574.4,1574.3,68.603]
[1745169307226,5.23454513,1574.5,1574.3,68.603]
[1745169314740,5.23454513,1574.5,1574.3,65.603]
[1745169316412,5.23454513,1574.5,1574.4,6.0]
[1745169318352,0.07938155,1575.1,1574.4,6.0]
[1745169318353,5.23454513,1574.7,1574.4,9.0]
[1745169318521,5.23454513,1574.7,1574.5,3.0]
[1745169319419,5.23454513,1574.7,1574.6,6.0]
[1745169319613,5.23454513,1574.9,1574.6,6.0]
[1745169319826,5.23454513,1574.9,1574.7,5.233]
[1745169320028,2.30340864,1574.8,1574.7,5.233]
[1745169320413,5.23454513,1574.9,1574.7,5.233]
[1745169320838,2.30340864,1574.8,1574.7,5.233]
[1745169321214,5.23454513,1574.9,1574.7,5.233]
[1745169321540,2.30340864,1574.8,1574.7,5.233]
[1745169321890,5.23454513,1574.9,1574.7,5.233]
[1745169322227,2.30340864,1574.8,1574.7,5.233]
[1745169322655,5.23454513,1574.9,1574.7,5.233]
[1745169323116,2.30340864,1574.8,1574.7,5.233]
[1745169323460,5.23454513,1574.9,1574.7,5.233]
[1745169323819,5.23454513,1574.9,1574.8,54.371]
[1745169327582,6.00434513,1574.9,1574.8,54.371]
[1745169327889,7.15477964,1574.9,1574.8,54.371]
[1745169329688,9.46127586,1574.9,1574.8,54.371]
[1745169330789,8.91127586,1574.9,1574.8,54.371]
[1745169340600,8.31084135,1574.9,1574.8,54.371]
[1745169348921,8.86084135,1574.9,1574.8,54.371]
[1745169351828,8.31084135,1574.9,1574.8,54.371]
[1745169352034,7.54104135,1574.9,1574.8,54.371]
[1745169352533,7.54104135,1574.9,1574.8,59.603]
[1745169353337,4.72152368,1574.9,1574.8,59.603]
[1745169353634,4.80089916,1574.9,1574.8,59.603]
[1745169354136,4.72152368,1574.9,1574.8,59.603]
[1745169355532,7.53900833,1574.9,1574.8,59.603]
[1745169364669,8.36060833,1574.9,1574.8,59.603]
[1745169365261,7.53900833,1574.9,1574.8,59.603]
[1745169372977,8.37018433,1574.9,1574.8,59.603]
[1745169375275,5.55314375,1574.9,1574.8,59.603]
[1745169375476,5.63251939,1574.9,1574.8,59.603]
[1745169377178,5.55314375,1574.9,1574.8,59.603]
[1745169385253,6.31394375,1574.9,1574.8,59.603]
[1745169385586,6.86394375,1574.9,1574.8,59.603]
[1745169396321,0.55,1574.6,1574.4,6.0]
[1745169396498,0.62939504,1574.6,1574.5,59.602]
[1745169396818,3.04486657,1574.6,1574.5,59.602]
[1745169398498,2.96547153,1574.6,1574.5,59.602]
[1745169399413,2.41547153,1574.6,1574.5,59.602]
[1745169404577,4.71914867,1574.6,1574.5,59.602]
[1745169412373,2.30367714,1574.6,1574.5,68.602]
[1745169412538,0.2128,1574.9,1574.5,70.51824323]
[1745169412733,2.30367714,1574.6,1574.5,69.78491587]
[1745169412934,0.2128,1574.9,1574.5,69.78491587]
[1745169413269,0.2128,1574.9,1574.6,9.71042553]
[1745169413772,0.2128,1574.9,1574.6,12.7981138]
[1745169413932,0.2128,1574.9,1574.6,10.38264227]
[1745169414532,0.2128,1574.9,1574.6,9.0]
[1745169418671,4.66635872,1574.8,1574.6,9.0]
[1745169419083,4.66635872,1574.8,1574.7,9.0]
[1745169420980,4.66635872,1574.8,1574.7,6.0]
[1745169421350,7.48332209,1574.8,1574.7,6.0]
[1745169425387,7.48332209,1574.8,1574.7,60.361]
[1745169425573,5.2324349,1574.8,1574.7,60.361]
[1745169429396,5.2324349,1574.8,1574.7,65.592]
[1745169435814,8.8555635,1574.8,1574.7,65.592]
[1745169436201,8.8555635,1574.8,1574.7,59.592]
[1745169441415,6.03874875,1574.8,1574.7,59.592]
[1745169452234,2.24632511,1574.8,1574.7,65.592]
[1745169452439,2.24632511,1574.8,1574.7,66.97464227]
[1745169452598,0.2128,1574.9,1574.7,66.97464227]
[1745169452795,0.2128,1574.9,1574.7,66.26421674]
[1745169453836,0.2128,1574.9,1574.7,65.592]
[1745169454928,0.2128,1574.9,1574.8,3.0]
[1745169455243,0.2128,1574.9,1574.8,9.0]
[1745169457334,5.44302095,1574.9,1574.8,6.0]
[1745169460017,5.44302095,1574.9,1574.7,65.592]
[1745169471455,2.24766711,1574.8,1574.7,65.592]
[1745169471669,5.44302095,1574.9,1574.7,65.592]
[1745169472059,2.24766711,1574.8,1574.7,65.592]
[1745169472424,5.44302095,1574.9,1574.7,65.592]
[1745169472656,0.2128,1574.9,1574.7,65.592]
[1745169473325,0.2128,1574.9,1574.7,11.231]
[1745169473546,5.23022095,1575.1,1574.8,59.604]
[1745169477358,2.41409417,1575.0,1574.8,59.604]
[1745169477656,2.41409417,1575.0,1574.8,65.3912]
[1745169482436,0.7939,1575.1,1574.8,65.3912]
[1745169482437,2.41409417,1574.9,1574.8,65.3912]
[1745169495870,5.47276128,1574.9,1574.8,65.3912]
[1745169501104,5.47276128,1574.9,1574.8,59.604]
[1745169505192,4.66176128,1574.9,1574.8,59.604]
[1745169511609,5.44976683,1574.9,1574.8,59.604]
[1745169516307,6.26396683,1574.9,1574.8,59.604]
[1745169517728,4.66176128,1574.9,1574.8,59.604]
[1745169524936,2.24766711,1574.9,1574.8,59.604]
[1745169527943,4.66176128,1574.9,1574.8,59.604]
[1745169546273,6.00156128,1574.9,1574.8,54.361]
[1745169546430,6.00156128,1574.9,1574.8,59.592]
[1745169546630,6.851064,1574.9,1574.8,59.592]
[1745169554678,4.66176128,1574.9,1574.8,59.592]
[1745169578500,5.45226128,1574.9,1574.8,59.592]
[1745169582803,4.66176128,1574.9,1574.8,59.592]
[1745169601004,2.24766711,1574.9,1574.8,65.3792]
[1745169601217,2.24766711,1574.9,1574.8,66.05143557]
[1745169601518,2.41409417,1575.3,1574.8,66.05143557]
[1745169601815,0.85334969,1575.5,1574.8,66.05143557]
[1745169601816,2.41409417,1575.2,1574.9,5.7872]
[1745169605420,2.41409417,1575.2,1575.0,3.0]
[1745169606110,2.41409417,1575.2,1575.0,3.47536749]
[1745169606810,2.41409417,1575.2,1575.0,9.26256749]
[1745169609124,2.41409417,1575.3,1575.0,9.26256749]
[1745169610509,2.41409417,1575.4,1575.0,9.26256749]
[1745169612527,2.41409417,1575.4,1575.1,5.7872]
[1745169612723,2.41409417,1575.4,1575.2,5.228]
[1745169613032,2.41409417,1575.4,1575.2,11.0152]
[1745169616327,2.41409417,1575.4,1575.3,54.348]
[1745169616531,3.21259417,1575.4,1575.3,54.348]
[1745169616909,5.46589586,1575.4,1575.3,54.348]
[1745169622363,5.46589586,1575.4,1575.3,59.575]
[1745169622538,6.02042017,1575.4,1575.3,59.575]
[1745169629754,5.46589586,1575.4,1575.3,59.575]
[1745169632760,4.66739586,1575.4,1575.3,59.575]
[1745169638263,2.25330169,1575.4,1575.3,59.575]
[1745169638462,2.25330169,1575.4,1575.3,62.575]
[1745169638673,4.66739586,1575.4,1575.3,62.575]
[1745169638866,2.25330169,1575.4,1575.3,62.575]
[1745169640169,2.25330169,1575.4,1575.3,68.3622]
[1745169640360,2.41409417,1575.6,1575.3,68.3622]
[1745169640560,2.44981017,1575.5,1575.4,3.0]
[1745169640874,2.41409417,1575.6,1575.4,3.0]
[1745169641279,2.44981017,1575.5,1575.4,3.0]
[1745169641691,2.41409417,1575.6,1575.4,3.0]
[1745169641984,2.45316309,1575.5,1575.4,3.0]
[1745169642155,2.41409417,1575.6,1575.4,3.0]
[1745169642476,2.45316309,1575.5,1575.4,3.47733233]
[1745169642776,2.41409417,1575.6,1575.4,3.47733233]
[1745169648002,2.41409417,1575.5,1575.4,3.0]
[1745169648478,2.41409417,1575.5,1575.4,8.226]
[1745169663774,3.16599417,1575.5,1575.4,8.226]
[1745169668379,0.7519,1575.5,1575.4,8.226]
[1745169674301,0.7519,1575.5,1575.4,5.226]
[1745169674626,1.3148,1575.4,1575.3,54.348]
[1745169674825,6.18232543,1575.4,1575.3,59.574]
[1745169677529,4.86752543,1575.4,1575.3,59.574]
[1745169679212,5.64582543,1575.4,1575.3,59.574]
[1745169690149,4.86752543,1575.4,1575.3,59.574]
[1745169700464,6.11897797,1575.4,1575.3,59.574]
[1745169700655,6.66897797,1575.4,1575.3,59.574]
[1745169722116,4.86752543,1575.4,1575.3,59.574]
[1745169733533,5.64612543,1575.4,1575.3,59.574]
[1745169733933,4.86752543,1575.4,1575.3,59.574]
[1745169734298,5.41752543,1575.4,1575.3,59.574]
[1745169734504,6.19612543,1575.4,1575.3,59.574]
[1745169735330,6.82367243,1575.4,1575.3,59.574]
[1745169737048,6.82367243,1575.4,1575.3,54.348]
[1745169737200,6.84377243,1575.4,1575.3,59.573]
[1745169737400,9.2578666,1575.4,1574.8,0.0488]
[1745169737636,2.41409417,1574.9,1574.8,0.0488]
[1745169738039,4.86403851,1574.9,1574.8,0.0488]
[1745169738246,2.41409417,1574.9,1574.8,0.0488]
[1745169738845,4.86403851,1574.9,1574.8,0.0488]
[1745169739052,2.41409417,1574.9,1574.8,0.0488]
[1745169739215,4.86403851,1574.9,1574.8,0.0488]
[1745169739415,2.41409417,1574.9,1574.8,0.0488]
[1745169739619,4.86403851,1574.9,1574.8,0.0488]